[Event "December 5 Early 2023"]
[Site "https://www.chess.com"]
[Date "2023.12.05"]
[Round "7"]
[White "NovakRatko"]
[Black "Zoete, Roelant"]
[Result "1-0"]
[Board "136"]
[TimeControl "180+1"]
[BlackFideId "40103269"]
[WhiteElo "2474"]
[BlackElo "2258"]
[BlackTeam "NED"]
[WhiteClock "0:01:54"]
[BlackClock "0:00:24"]

1. d4 {[%clk 0:03:00]}  d5 {[%clk 0:02:59]} 2. c4 {[%clk 0:03:00]}  e6 {[%clk 0:02:59]} 3. cxd5 {[%clk 0:03:00]}  Nf6 {[%clk 0:03:00]} 4. Nc3 {[%clk 0:03:01]}  exd5 {[%clk 0:02:59]} 5. f3 {[%clk 0:03:01]}  Bf5 {[%clk 0:02:51]} 6. Bg5 {[%clk 0:03:00]}  c6 {[%clk 0:02:49]} 7. e4 {[%clk 0:02:59]}  Bg6 {[%clk 0:02:39]} 8. e5 {[%clk 0:02:59]}  h6 {[%clk 0:02:39]} 9. Bh4 {[%clk 0:02:59]}  Qe7 {[%clk 0:02:22]} 10. Qe2 {[%clk 0:02:58]}  Nbd7 {[%clk 0:02:10]} 11. exf6 {[%clk 0:02:58]}  Nxf6 {[%clk 0:02:10]} 12. Bxf6 {[%clk 0:02:57]}  gxf6 {[%clk 0:02:09]} 13. O-O-O {[%clk 0:02:53]}  h5 {[%clk 0:02:04]} 14. Qxe7+ {[%clk 0:02:46]}  Kxe7 {[%clk 0:02:05]} 15. Bd3 {[%clk 0:02:47]}  Bh6+ {[%clk 0:02:01]} 16. Kc2 {[%clk 0:02:47]}  Bxd3+ {[%clk 0:02:01]} 17. Kxd3 {[%clk 0:02:44]}  Rhg8 {[%clk 0:02:02]} 18. g3 {[%clk 0:02:37]}  Kd6 {[%clk 0:01:52]} 19. Re1 {[%clk 0:02:32]}  Rae8 {[%clk 0:01:48]} 20. Nh3 {[%clk 0:02:29]}  b6 {[%clk 0:01:37]} 21. b4 {[%clk 0:02:27]}  c5 {[%clk 0:01:33]} 22. bxc5+ {[%clk 0:02:26]}  bxc5 {[%clk 0:01:34]} 23. dxc5+ {[%clk 0:02:27]}  Kxc5 {[%clk 0:01:35]} 24. Rxe8 {[%clk 0:02:18]}  Rxe8 {[%clk 0:01:35]} 25. Nf4 {[%clk 0:02:18]}  Bxf4 {[%clk 0:01:21]} 26. gxf4 {[%clk 0:02:17]}  f5 {[%clk 0:01:22]} 27. Rb1 {[%clk 0:02:15]}  Rg8 {[%clk 0:01:13]} 28. Rb5+ {[%clk 0:02:14]}  Kc6 {[%clk 0:01:13]} 29. Rxd5 {[%clk 0:02:13]}  Rg2 {[%clk 0:00:59]} 30. Rxf5 {[%clk 0:02:13]}  Rxh2 {[%clk 0:00:59]} 31. Rxf7 {[%clk 0:02:13]}  a5 {[%clk 0:00:35]} 32. Rf5 {[%clk 0:02:07]}  h4 {[%clk 0:00:34]} 33. Rxa5 {[%clk 0:02:07]}  h3 {[%clk 0:00:35]} 34. Rh5 {[%clk 0:02:07]}  Rh1 {[%clk 0:00:33]} 35. Ke3 {[%clk 0:02:03]}  h2 {[%clk 0:00:32]} 36. Ne2 {[%clk 0:02:03]}  Kd6 {[%clk 0:00:29]} 37. Kf2 {[%clk 0:02:03]}  Ke6 {[%clk 0:00:27]} 38. a4 {[%clk 0:01:57]}  Kd6 {[%clk 0:00:26]} 39. a5 {[%clk 0:01:57]}  Ke6 {[%clk 0:00:20]} 40. a6 {[%clk 0:01:57]}  Ra1 {[%clk 0:00:20]} 41. Rxh2 {[%clk 0:01:56]}  Kf7 {[%clk 0:00:20]} 42. Rh6 {[%clk 0:01:56]}  Kg7 {[%clk 0:00:20]} 43. Rb6 {[%clk 0:01:55]}  Kf7 {[%clk 0:00:21]} 44. f5 {[%clk 0:01:54]}  Ke7 {[%clk 0:00:21]} 45. Kg3 {[%clk 0:01:54]}  Kf7 {[%clk 0:00:21]} 46. Kf4 {[%clk 0:01:54]}  Kf8 {[%clk 0:00:22]} 47. Ng3 {[%clk 0:01:54]}  Ra4+ {[%clk 0:00:22]} 48. Ne4 {[%clk 0:01:55]}  Kf7 {[%clk 0:00:22]} 49. Ke5 {[%clk 0:01:54]}  Kf8 {[%clk 0:00:23]} 50. f6 {[%clk 0:01:54]}  Ra5+ {[%clk 0:00:23]} 51. Ke6 {[%clk 0:01:54]}  Ke8 {[%clk 0:00:24]} 52. Rb8# {[%clk 0:01:54]} 1-0

[Event "December 5 Early 2023"]
[Site "https://www.chess.com"]
[Date "2023.12.05"]
[Round "7"]
[White "Kotlyar, Kirill"]
[Black "Buscar, Michael"]
[Result "1-0"]
[Board "141"]
[TimeControl "180+1"]
[WhiteFideId "24145599"]
[BlackFideId "2603616"]
[WhiteElo "2605"]
[BlackElo "2345"]
[WhiteTeam "RUS"]
[BlackTeam "CAN"]
[WhiteClock "0:00:43"]
[BlackClock "0:00:03"]

1. e4 {[%clk 0:03:00]}  c5 {[%clk 0:02:44]} 2. Nf3 {[%clk 0:02:57]}  Nc6 {[%clk 0:02:44]} 3. d4 {[%clk 0:02:54]}  cxd4 {[%clk 0:02:44]} 4. Nxd4 {[%clk 0:02:55]}  Nf6 {[%clk 0:02:43]} 5. Nc3 {[%clk 0:02:55]}  e5 {[%clk 0:02:41]} 6. Ndb5 {[%clk 0:02:55]}  h6 {[%clk 0:02:40]} 7. Nd6+ {[%clk 0:02:48]}  Bxd6 {[%clk 0:02:40]} 8. Qxd6 {[%clk 0:02:49]}  Qe7 {[%clk 0:02:41]} 9. Qd1 {[%clk 0:02:45]}  O-O {[%clk 0:02:40]} 10. Bc4 {[%clk 0:02:32]}  Rd8 {[%clk 0:02:23]} 11. O-O {[%clk 0:02:31]}  d6 {[%clk 0:02:13]} 12. Be3 {[%clk 0:02:17]}  Be6 {[%clk 0:02:11]} 13. Qe2 {[%clk 0:02:16]}  Nd4 {[%clk 0:01:45]} 14. Bxd4 {[%clk 0:01:45]}  exd4 {[%clk 0:01:46]} 15. Nb5 {[%clk 0:01:41]}  Bxc4 {[%clk 0:01:34]} 16. Qxc4 {[%clk 0:01:42]}  Qxe4 {[%clk 0:01:34]} 17. Rae1 {[%clk 0:01:30]}  Qc6 {[%clk 0:01:08]} 18. Qd3 {[%clk 0:01:30]}  Rac8 {[%clk 0:01:00]} 19. Nxd4 {[%clk 0:01:29]}  Qc4 {[%clk 0:01:00]} 20. Qd2 {[%clk 0:01:09]}  Qxa2 {[%clk 0:00:52]} 21. b3 {[%clk 0:01:08]}  Qb2 {[%clk 0:00:47]} 22. Re3 {[%clk 0:00:57]}  Nd5 {[%clk 0:00:30]} 23. Rg3 {[%clk 0:00:56]}  Kf8 {[%clk 0:00:23]} 24. Nf5 {[%clk 0:00:52]}  Ne7 {[%clk 0:00:09]} 25. Nxg7 {[%clk 0:00:49]}  Qxg7 {[%clk 0:00:09]} 26. Rxg7 {[%clk 0:00:49]}  Kxg7 {[%clk 0:00:10]} 27. Re1 {[%clk 0:00:46]}  Ng6 {[%clk 0:00:09]} 28. Qd4+ {[%clk 0:00:46]}  Kg8 {[%clk 0:00:09]} 29. c4 {[%clk 0:00:46]}  Rc5 {[%clk 0:00:09]} 30. f4 {[%clk 0:00:44]}  b6 {[%clk 0:00:08]} 31. g3 {[%clk 0:00:45]}  Ra5 {[%clk 0:00:08]} 32. b4 {[%clk 0:00:44]}  Ra3 {[%clk 0:00:06]} 33. f5 {[%clk 0:00:44]}  Ne5 {[%clk 0:00:03]} 34. Rxe5 {[%clk 0:00:43]} 1-0

[Event "December 5 Early 2023"]
[Site "https://www.chess.com"]
[Date "2023.12.05"]
[Round "7"]
[White "Mohammed, Zozek Salah Mohammed"]
[Black "Kim, Sergey"]
[Result "1-0"]
[Board "142"]
[TimeControl "180+1"]
[WhiteFideId "4803361"]
[BlackFideId "13700570"]
[WhiteElo "2344"]
[BlackElo "2576"]
[WhiteTeam "IRQ"]
[BlackTeam "KAZ"]
[WhiteClock "0:00:38"]
[BlackClock "0:00:17"]

1. d4 {[%clk 0:03:00]}  Nf6 {[%clk 0:02:59]} 2. Nf3 {[%clk 0:03:01]}  g6 {[%clk 0:02:59]} 3. g3 {[%clk 0:03:02]}  Bg7 {[%clk 0:02:59]} 4. Bg2 {[%clk 0:03:03]}  d6 {[%clk 0:02:59]} 5. O-O {[%clk 0:03:04]}  O-O {[%clk 0:02:59]} 6. b3 {[%clk 0:03:03]}  e5 {[%clk 0:02:59]} 7. dxe5 {[%clk 0:03:01]}  Nfd7 {[%clk 0:02:59]} 8. Bg5 {[%clk 0:02:29]}  Qe8 {[%clk 0:02:53]} 9. Nc3 {[%clk 0:02:28]}  Na6 {[%clk 0:02:39]} 10. Nd5 {[%clk 0:02:25]}  dxe5 {[%clk 0:02:37]} 11. Be7 {[%clk 0:02:18]}  c6 {[%clk 0:02:18]} 12. Bxf8 {[%clk 0:02:16]}  Kxf8 {[%clk 0:02:15]} 13. Ne3 {[%clk 0:02:15]}  Qe7 {[%clk 0:02:12]} 14. Rc1 {[%clk 0:02:09]}  Nac5 {[%clk 0:02:07]} 15. c4 {[%clk 0:02:06]}  a5 {[%clk 0:02:05]} 16. Qc2 {[%clk 0:02:03]}  e4 {[%clk 0:02:02]} 17. Nd2 {[%clk 0:01:58]}  f5 {[%clk 0:01:58]} 18. Nd1 {[%clk 0:01:52]}  Qe5 {[%clk 0:01:51]} 19. Nc3 {[%clk 0:01:50]}  Nf6 {[%clk 0:01:50]} 20. Rfd1 {[%clk 0:01:38]}  Be6 {[%clk 0:01:49]} 21. Nf1 {[%clk 0:01:37]}  Bh6 {[%clk 0:01:47]} 22. Rb1 {[%clk 0:01:33]}  Bg7 {[%clk 0:01:37]} 23. Nd5 {[%clk 0:01:29]}  Nfd7 {[%clk 0:01:31]} 24. Nf4 {[%clk 0:01:23]}  Bf7 {[%clk 0:01:30]} 25. h4 {[%clk 0:01:13]}  Bf6 {[%clk 0:01:23]} 26. Rd2 {[%clk 0:01:11]}  Kg7 {[%clk 0:01:17]} 27. Rbd1 {[%clk 0:01:10]}  Be8 {[%clk 0:01:17]} 28. Ne3 {[%clk 0:01:07]}  g5 {[%clk 0:01:00]} 29. hxg5 {[%clk 0:01:03]}  Bxg5 {[%clk 0:01:01]} 30. Qb2 {[%clk 0:00:56]}  Bxf4 {[%clk 0:00:52]} 31. gxf4 {[%clk 0:00:56]}  Qxb2 {[%clk 0:00:51]} 32. Rxb2 {[%clk 0:00:57]}  Kf6 {[%clk 0:00:51]} 33. Bh3 {[%clk 0:00:53]}  Bg6 {[%clk 0:00:50]} 34. Rbd2 {[%clk 0:00:53]}  Ke6 {[%clk 0:00:47]} 35. Rd6+ {[%clk 0:00:53]}  Ke7 {[%clk 0:00:47]} 36. Bxf5 {[%clk 0:00:52]}  Bxf5 {[%clk 0:00:39]} 37. Nxf5+ {[%clk 0:00:52]}  Ke8 {[%clk 0:00:38]} 38. a3 {[%clk 0:00:48]}  Nf8 {[%clk 0:00:35]} 39. b4 {[%clk 0:00:46]}  axb4 {[%clk 0:00:34]} 40. axb4 {[%clk 0:00:47]}  Nce6 {[%clk 0:00:33]} 41. e3 {[%clk 0:00:44]}  Ra4 {[%clk 0:00:28]} 42. b5 {[%clk 0:00:41]}  Rxc4 {[%clk 0:00:26]} 43. Rxe6+ {[%clk 0:00:40]}  Nxe6 {[%clk 0:00:25]} 44. Nd6+ {[%clk 0:00:40]}  Ke7 {[%clk 0:00:25]} 45. Nxc4 {[%clk 0:00:41]}  cxb5 {[%clk 0:00:25]} 46. Nd6 {[%clk 0:00:40]}  b4 {[%clk 0:00:23]} 47. Nxb7 {[%clk 0:00:40]}  Nc7 {[%clk 0:00:22]} 48. Nc5 {[%clk 0:00:39]}  h5 {[%clk 0:00:17]} 49. Rd7+ {[%clk 0:00:38]} 1-0

[Event "December 5 Early 2023"]
[Site "https://www.chess.com"]
[Date "2023.12.05"]
[Round "7"]
[White "Tao, Sihan"]
[Black "titledsquirrel2007"]
[Result "1-0"]
[Board "146"]
[TimeControl "180+1"]
[WhiteFideId "30982677"]
[WhiteElo "2521"]
[BlackElo "2327"]
[WhiteTeam "USA"]
[WhiteClock "0:02:18"]
[BlackClock "0:02:01"]

1. e4 {[%clk 0:03:00]}  e6 {[%clk 0:02:57]} 2. d4 {[%clk 0:02:56]}  d5 {[%clk 0:02:58]} 3. Nd2 {[%clk 0:02:57]}  c5 {[%clk 0:02:58]} 4. Ngf3 {[%clk 0:02:56]}  cxd4 {[%clk 0:02:56]} 5. Nxd4 {[%clk 0:02:57]}  Nc6 {[%clk 0:02:57]} 6. Bb5 {[%clk 0:02:56]}  Bd7 {[%clk 0:02:57]} 7. Nxc6 {[%clk 0:02:57]}  bxc6 {[%clk 0:02:57]} 8. Bd3 {[%clk 0:02:57]}  Bd6 {[%clk 0:02:55]} 9. Qe2 {[%clk 0:02:58]}  Qc7 {[%clk 0:02:55]} 10. Nf3 {[%clk 0:02:56]}  Ne7 {[%clk 0:02:54]} 11. O-O {[%clk 0:02:56]}  O-O {[%clk 0:02:52]} 12. e5 {[%clk 0:02:56]}  Bc5 {[%clk 0:02:52]} 13. b3 {[%clk 0:02:55]}  Ng6 {[%clk 0:02:51]} 14. Bb2 {[%clk 0:02:55]}  Nf4 {[%clk 0:02:49]} 15. Qd2 {[%clk 0:02:54]}  Nxd3 {[%clk 0:02:49]} 16. Qxd3 {[%clk 0:02:54]}  Be7 {[%clk 0:02:49]} 17. c4 {[%clk 0:02:52]}  a5 {[%clk 0:02:45]} 18. h4 {[%clk 0:02:49]}  a4 {[%clk 0:02:41]} 19. Ng5 {[%clk 0:02:49]}  Bxg5 {[%clk 0:02:37]} 20. hxg5 {[%clk 0:02:50]}  axb3 {[%clk 0:02:37]} 21. axb3 {[%clk 0:02:50]}  Rab8 {[%clk 0:02:35]} 22. Ba3 {[%clk 0:02:48]}  c5 {[%clk 0:02:34]} 23. cxd5 {[%clk 0:02:47]}  exd5 {[%clk 0:02:35]} 24. Qxd5 {[%clk 0:02:47]}  Be6 {[%clk 0:02:35]} 25. Qxc5 {[%clk 0:02:46]}  Qxc5 {[%clk 0:02:35]} 26. Bxc5 {[%clk 0:02:47]}  Rfc8 {[%clk 0:02:36]} 27. b4 {[%clk 0:02:47]}  Bc4 {[%clk 0:02:26]} 28. Rfd1 {[%clk 0:02:47]}  Rc6 {[%clk 0:02:19]} 29. Rd6 {[%clk 0:02:46]}  Rcc8 {[%clk 0:02:18]} 30. Rad1 {[%clk 0:02:43]}  Be6 {[%clk 0:02:18]} 31. f3 {[%clk 0:02:41]}  h6 {[%clk 0:02:18]} 32. gxh6 {[%clk 0:02:41]}  gxh6 {[%clk 0:02:19]} 33. Kf2 {[%clk 0:02:41]}  Kg7 {[%clk 0:02:18]} 34. R6d4 {[%clk 0:02:40]}  h5 {[%clk 0:02:17]} 35. Rh1 {[%clk 0:02:39]}  Kg6 {[%clk 0:02:17]} 36. Rdh4 {[%clk 0:02:34]}  Rh8 {[%clk 0:02:17]} 37. g4 {[%clk 0:02:34]}  Ra8 {[%clk 0:02:15]} 38. Rxh5 {[%clk 0:02:34]}  Rxh5 {[%clk 0:02:14]} 39. Rxh5 {[%clk 0:02:34]}  Ra2+ {[%clk 0:02:14]} 40. Kg3 {[%clk 0:02:35]}  Bd5 {[%clk 0:02:13]} 41. Rf5 {[%clk 0:02:35]}  Ra3 {[%clk 0:02:12]} 42. Rf6+ {[%clk 0:02:34]}  Kg7 {[%clk 0:02:13]} 43. b5 {[%clk 0:02:31]}  Rc3 {[%clk 0:02:12]} 44. Bf2 {[%clk 0:02:29]}  Rb3 {[%clk 0:02:12]} 45. b6 {[%clk 0:02:29]}  Be6 {[%clk 0:02:10]} 46. Kh4 {[%clk 0:02:25]}  Bd5 {[%clk 0:02:10]} 47. f4 {[%clk 0:02:25]}  Rb4 {[%clk 0:02:10]} 48. Kg5 {[%clk 0:02:24]}  Be6 {[%clk 0:02:06]} 49. Bc5 {[%clk 0:02:22]}  Rb1 {[%clk 0:02:05]} 50. f5 {[%clk 0:02:20]}  Bd7 {[%clk 0:02:04]} 51. Rd6 {[%clk 0:02:18]}  Bc8 {[%clk 0:02:04]} 52. Rd8 {[%clk 0:02:18]}  Bb7 {[%clk 0:02:04]} 53. Rd7 {[%clk 0:02:18]}  Bc6 {[%clk 0:02:04]} 54. Rc7 {[%clk 0:02:19]}  Bf3 {[%clk 0:02:01]} 55. e6 {[%clk 0:02:18]} 1-0

[Event "December 5 Early 2023"]
[Site "https://www.chess.com"]
[Date "2023.12.05"]
[Round "7"]
[White "IranianCheetah"]
[Black "Vakhidov, Shahzod"]
[Result "0-1"]
[Board "147"]
[TimeControl "180+1"]
[BlackFideId "14205270"]
[WhiteElo "2326"]
[BlackElo "2517"]
[BlackTeam "UZB"]
[WhiteClock "0:00:00"]
[BlackClock "0:00:15"]

1. e4 {[%clk 0:03:00]}  c5 {[%clk 0:03:00]} 2. Nf3 {[%clk 0:03:01]}  g6 {[%clk 0:03:00]} 3. d4 {[%clk 0:03:01]}  cxd4 {[%clk 0:03:00]} 4. Qxd4 {[%clk 0:03:01]}  Nf6 {[%clk 0:03:01]} 5. e5 {[%clk 0:03:02]}  Nc6 {[%clk 0:03:01]} 6. Qa4 {[%clk 0:03:03]}  Nd5 {[%clk 0:03:01]} 7. Qe4 {[%clk 0:03:03]}  Nb6 {[%clk 0:02:58]} 8. Nc3 {[%clk 0:03:03]}  Bg7 {[%clk 0:02:59]} 9. Bf4 {[%clk 0:03:03]}  d5 {[%clk 0:02:59]} 10. exd6 {[%clk 0:03:04]}  Bf5 {[%clk 0:02:59]} 11. Qe2 {[%clk 0:03:03]}  O-O {[%clk 0:02:59]} 12. O-O-O {[%clk 0:02:57]}  exd6 {[%clk 0:02:59]} 13. Rxd6 {[%clk 0:02:54]}  Qc8 {[%clk 0:02:59]} 14. Qb5 {[%clk 0:02:38]}  Re8 {[%clk 0:02:49]} 15. Bd3 {[%clk 0:02:34]}  Bxd3 {[%clk 0:02:37]} 16. Rxd3 {[%clk 0:02:34]}  Qg4 {[%clk 0:02:37]} 17. Qg5 {[%clk 0:02:26]}  Qc8 {[%clk 0:02:20]} 18. a3 {[%clk 0:01:56]}  a6 {[%clk 0:02:08]} 19. h4 {[%clk 0:01:49]}  h6 {[%clk 0:01:56]} 20. Qc5 {[%clk 0:01:48]}  Nd7 {[%clk 0:01:53]} 21. Qd6 {[%clk 0:01:48]}  Nf6 {[%clk 0:01:48]} 22. Re1 {[%clk 0:01:38]}  Rxe1+ {[%clk 0:01:42]} 23. Nxe1 {[%clk 0:01:38]}  Nh5 {[%clk 0:01:42]} 24. Nf3 {[%clk 0:01:31]}  Qf5 {[%clk 0:01:30]} 25. Nd5 {[%clk 0:01:16]}  Bf8 {[%clk 0:01:02]} 26. Qc7 {[%clk 0:01:07]}  Rc8 {[%clk 0:01:01]} 27. Qxb7 {[%clk 0:01:01]}  Nxf4 {[%clk 0:01:01]} 28. Nxf4 {[%clk 0:00:48]}  Qxf4+ {[%clk 0:01:01]} 29. Kb1 {[%clk 0:00:49]}  Qc7 {[%clk 0:00:49]} 30. Qxa6 {[%clk 0:00:48]}  Bg7 {[%clk 0:00:32]} 31. h5 {[%clk 0:00:33]}  Nb4 {[%clk 0:00:30]} 32. Qxc8+ {[%clk 0:00:22]}  Qxc8 {[%clk 0:00:29]} 33. axb4 {[%clk 0:00:23]}  g5 {[%clk 0:00:22]} 34. c3 {[%clk 0:00:20]}  Qg4 {[%clk 0:00:21]} 35. b5 {[%clk 0:00:15]}  Qf5 {[%clk 0:00:18]} 36. Kc2 {[%clk 0:00:13]}  Qxb5 {[%clk 0:00:19]} 37. b4 {[%clk 0:00:12]}  g4 {[%clk 0:00:16]} 38. Nd4 {[%clk 0:00:11]}  Qxh5 {[%clk 0:00:17]} 39. b5 {[%clk 0:00:10]}  Bxd4 {[%clk 0:00:17]} 40. Rxd4 {[%clk 0:00:10]}  Qxb5 {[%clk 0:00:18]} 41. Rxg4+ {[%clk 0:00:10]}  Kf8 {[%clk 0:00:18]} 42. f3 {[%clk 0:00:08]}  h5 {[%clk 0:00:18]} 43. Re4 {[%clk 0:00:07]}  Qg5 {[%clk 0:00:18]} 44. Re2 {[%clk 0:00:06]}  Qf5+ {[%clk 0:00:17]} 45. Re4 {[%clk 0:00:06]}  h4 {[%clk 0:00:17]} 46. Kb3 {[%clk 0:00:05]}  h3 {[%clk 0:00:16]} 47. gxh3 {[%clk 0:00:05]}  Qxf3 {[%clk 0:00:16]} 48. Rh4 {[%clk 0:00:02]}  Qg3 {[%clk 0:00:15]} 49. Rh8+ {[%clk 0:00:02]}  Kg7 {[%clk 0:00:15]} 50. Rc8 {[%clk 0:00:00]}  Qxh3 {[%clk 0:00:15]} 0-1

[Event "December 5 Early 2023"]
[Site "https://www.chess.com"]
[Date "2023.12.05"]
[Round "7"]
[White "Tharushi, T H D Niklesha"]
[Black "Chylewski, Patryk"]
[Result "1-0"]
[Board "148"]
[TimeControl "180+1"]
[WhiteFideId "9918264"]
[BlackFideId "1186191"]
[WhiteElo "2317"]
[BlackElo "2517"]
[WhiteTeam "SRI"]
[BlackTeam "POL"]
[WhiteClock "0:00:11"]
[BlackClock "0:00:03"]

1. e4 {[%clk 0:03:00]}  e6 {[%clk 0:02:54]} 2. d4 {[%clk 0:02:51]}  d5 {[%clk 0:02:50]} 3. Nc3 {[%clk 0:02:49]}  Bb4 {[%clk 0:02:34]} 4. exd5 {[%clk 0:02:44]}  exd5 {[%clk 0:02:32]} 5. Bd3 {[%clk 0:02:45]}  Nf6 {[%clk 0:02:20]} 6. Ne2 {[%clk 0:02:37]}  Bg4 {[%clk 0:02:07]} 7. O-O {[%clk 0:02:31]}  O-O {[%clk 0:01:58]} 8. f3 {[%clk 0:02:21]}  Bh5 {[%clk 0:01:54]} 9. Bg5 {[%clk 0:02:21]}  c6 {[%clk 0:01:48]} 10. Ng3 {[%clk 0:02:11]}  Bg6 {[%clk 0:01:48]} 11. Nce2 {[%clk 0:02:10]}  Nbd7 {[%clk 0:01:40]} 12. Nf5 {[%clk 0:02:01]}  Re8 {[%clk 0:01:33]} 13. c3 {[%clk 0:01:49]}  Bf8 {[%clk 0:01:33]} 14. Neg3 {[%clk 0:01:49]}  h6 {[%clk 0:01:31]} 15. Bf4 {[%clk 0:01:44]}  Nb6 {[%clk 0:01:17]} 16. b3 {[%clk 0:01:35]}  Qd7 {[%clk 0:01:16]} 17. Qc2 {[%clk 0:01:33]}  Rac8 {[%clk 0:01:13]} 18. b4 {[%clk 0:01:14]}  Nc4 {[%clk 0:01:09]} 19. Nh4 {[%clk 0:00:52]}  Bxd3 {[%clk 0:01:00]} 20. Qxd3 {[%clk 0:00:52]}  g5 {[%clk 0:00:53]} 21. Be5 {[%clk 0:00:52]}  Nxe5 {[%clk 0:00:38]} 22. dxe5 {[%clk 0:00:53]}  Rxe5 {[%clk 0:00:39]} 23. Nhf5 {[%clk 0:00:52]}  Rce8 {[%clk 0:00:35]} 24. h4 {[%clk 0:00:37]}  Qe6 {[%clk 0:00:21]} 25. hxg5 {[%clk 0:00:31]}  hxg5 {[%clk 0:00:22]} 26. f4 {[%clk 0:00:26]}  gxf4 {[%clk 0:00:11]} 27. Rxf4 {[%clk 0:00:26]}  c5 {[%clk 0:00:09]} 28. Raf1 {[%clk 0:00:23]}  cxb4 {[%clk 0:00:04]} 29. Nd4 {[%clk 0:00:20]}  Qe7 {[%clk 0:00:01]} 30. Rxf6 {[%clk 0:00:19]}  Bg7 {[%clk 0:00:02]} 31. Rxf7 {[%clk 0:00:19]}  Qxf7 {[%clk 0:00:02]} 32. Rxf7 {[%clk 0:00:19]}  Kxf7 {[%clk 0:00:03]} 33. Qf3+ {[%clk 0:00:19]}  Kg8 {[%clk 0:00:02]} 34. cxb4 {[%clk 0:00:20]}  Re1+ {[%clk 0:00:03]} 35. Kh2 {[%clk 0:00:20]}  Bxd4 {[%clk 0:00:03]} 36. Nf5 {[%clk 0:00:21]}  Bf6 {[%clk 0:00:02]} 37. Qg4+ {[%clk 0:00:21]}  Kf7 {[%clk 0:00:02]} 38. Nd6+ {[%clk 0:00:20]}  Ke7 {[%clk 0:00:01]} 39. Nxe8 {[%clk 0:00:20]}  Kxe8 {[%clk 0:00:02]} 40. Qg6+ {[%clk 0:00:20]}  Ke7 {[%clk 0:00:02]} 41. Qh7+ {[%clk 0:00:20]}  Ke6 {[%clk 0:00:02]} 42. Qxb7 {[%clk 0:00:21]}  Re5 {[%clk 0:00:02]} 43. Qxa7 {[%clk 0:00:20]}  Kf5 {[%clk 0:00:03]} 44. Qf2+ {[%clk 0:00:20]}  Ke6 {[%clk 0:00:03]} 45. b5 {[%clk 0:00:20]}  Rh5+ {[%clk 0:00:03]} 46. Kg1 {[%clk 0:00:19]}  Rh4 {[%clk 0:00:03]} 47. Qe3+ {[%clk 0:00:17]}  Re4 {[%clk 0:00:04]} 48. Qb6+ {[%clk 0:00:17]}  Kf5 {[%clk 0:00:03]} 49. Qf2+ {[%clk 0:00:17]}  Ke6 {[%clk 0:00:03]} 50. Qc2 {[%clk 0:00:17]}  Bd4+ {[%clk 0:00:04]} 51. Kf1 {[%clk 0:00:17]}  Rf4+ {[%clk 0:00:04]} 52. Ke1 {[%clk 0:00:17]}  Re4+ {[%clk 0:00:04]} 53. Kd1 {[%clk 0:00:18]}  Rf4 {[%clk 0:00:04]} 54. Qc6+ {[%clk 0:00:16]}  Ke5 {[%clk 0:00:04]} 55. Qc7+ {[%clk 0:00:16]}  Ke4 {[%clk 0:00:05]} 56. b6 {[%clk 0:00:16]}  Kd3 {[%clk 0:00:03]} 57. Qh7+ {[%clk 0:00:15]}  Kc3 {[%clk 0:00:03]} 58. b7 {[%clk 0:00:12]}  Rf1+ {[%clk 0:00:03]} 59. Ke2 {[%clk 0:00:13]}  Rf2+ {[%clk 0:00:04]} 60. Ke1 {[%clk 0:00:13]}  Rxg2 {[%clk 0:00:04]} 61. b8=Q {[%clk 0:00:11]}  Rg1+ {[%clk 0:00:04]} 62. Ke2 {[%clk 0:00:12]}  Rg2+ {[%clk 0:00:05]} 63. Kf3 {[%clk 0:00:12]}  Rf2+ {[%clk 0:00:05]} 64. Kg4 {[%clk 0:00:12]}  Rg2+ {[%clk 0:00:05]} 65. Kf5 {[%clk 0:00:13]}  Rf2+ {[%clk 0:00:06]} 66. Ke6 {[%clk 0:00:13]}  Rf6+ {[%clk 0:00:06]} 67. Kd7 {[%clk 0:00:13]}  Rb6 {[%clk 0:00:05]} 68. Qh3+ {[%clk 0:00:12]}  Kc4 {[%clk 0:00:05]} 69. Qc7+ {[%clk 0:00:12]}  Kb5 {[%clk 0:00:05]} 70. Qb3+ {[%clk 0:00:12]}  Ka5 {[%clk 0:00:05]} 71. Qa3+ {[%clk 0:00:13]}  Kb5 {[%clk 0:00:05]} 72. Qd3+ {[%clk 0:00:11]}  Ka5 {[%clk 0:00:04]} 73. Qxd4 {[%clk 0:00:11]}  Ka6 {[%clk 0:00:03]} 74. Qa4# {[%clk 0:00:11]} 1-0

[Event "December 5 Early 2023"]
[Site "https://www.chess.com"]
[Date "2023.12.05"]
[Round "7"]
[White "Lopusiewicz, Piotr"]
[Black "Rose, Felix"]
[Result "0-1"]
[Board "151"]
[TimeControl "180+1"]
[WhiteFideId "1116029"]
[BlackFideId "5105722"]
[WhiteElo "2453"]
[BlackElo "2312"]
[WhiteTeam "POL"]
[BlackTeam "MEX"]
[WhiteClock "0:00:10"]
[BlackClock "0:00:49"]

1. d4 {[%clk 0:03:00]}  d5 {[%clk 0:02:59]} 2. c4 {[%clk 0:03:01]}  e6 {[%clk 0:02:59]} 3. Nf3 {[%clk 0:03:01]}  Nf6 {[%clk 0:02:59]} 4. Nc3 {[%clk 0:03:01]}  Be7 {[%clk 0:03:00]} 5. Bf4 {[%clk 0:03:02]}  O-O {[%clk 0:03:00]} 6. e3 {[%clk 0:03:02]}  Nbd7 {[%clk 0:02:59]} 7. c5 {[%clk 0:03:02]}  c6 {[%clk 0:02:57]} 8. Bd3 {[%clk 0:03:00]}  b6 {[%clk 0:02:54]} 9. b4 {[%clk 0:02:59]}  a5 {[%clk 0:02:54]} 10. a3 {[%clk 0:03:00]}  Ba6 {[%clk 0:02:50]} 11. O-O {[%clk 0:02:56]}  Qc8 {[%clk 0:02:48]} 12. h3 {[%clk 0:02:55]}  h6 {[%clk 0:02:47]} 13. Qe2 {[%clk 0:02:41]}  Bxd3 {[%clk 0:02:44]} 14. Qxd3 {[%clk 0:02:41]}  Qb7 {[%clk 0:02:35]} 15. Rfc1 {[%clk 0:02:32]}  axb4 {[%clk 0:02:34]} 16. axb4 {[%clk 0:02:31]}  Rxa1 {[%clk 0:02:35]} 17. Rxa1 {[%clk 0:02:31]}  Ra8 {[%clk 0:02:35]} 18. Qb1 {[%clk 0:02:28]}  Rxa1 {[%clk 0:02:30]} 19. Qxa1 {[%clk 0:02:28]}  bxc5 {[%clk 0:02:31]} 20. bxc5 {[%clk 0:02:28]}  Bd8 {[%clk 0:02:19]} 21. g4 {[%clk 0:02:13]}  Bc7 {[%clk 0:02:17]} 22. Bxc7 {[%clk 0:02:11]}  Qxc7 {[%clk 0:02:18]} 23. Qa8+ {[%clk 0:02:06]}  Kh7 {[%clk 0:02:17]} 24. Kg2 {[%clk 0:01:55]}  e5 {[%clk 0:02:15]} 25. Ne2 {[%clk 0:01:39]}  exd4 {[%clk 0:02:05]} 26. exd4 {[%clk 0:01:30]}  Ne4 {[%clk 0:02:02]} 27. Qe8 {[%clk 0:01:18]}  Ndf6 {[%clk 0:01:57]} 28. Qe5 {[%clk 0:01:17]}  Qd7 {[%clk 0:01:47]} 29. Ng3 {[%clk 0:01:11]}  Nxg3 {[%clk 0:01:42]} 30. Kxg3 {[%clk 0:01:11]}  Ne4+ {[%clk 0:01:40]} 31. Kg2 {[%clk 0:01:11]}  g6 {[%clk 0:01:34]} 32. Qf4 {[%clk 0:01:09]}  Qe6 {[%clk 0:01:27]} 33. Ne5 {[%clk 0:01:07]}  f6 {[%clk 0:01:22]} 34. Nf3 {[%clk 0:00:58]}  g5 {[%clk 0:01:17]} 35. Qc7+ {[%clk 0:00:57]}  Kg6 {[%clk 0:01:14]} 36. Qd8 {[%clk 0:00:56]}  h5 {[%clk 0:01:08]} 37. gxh5+ {[%clk 0:00:52]}  Kxh5 {[%clk 0:01:09]} 38. Qf8 {[%clk 0:00:29]}  Kg6 {[%clk 0:01:06]} 39. Nh2 {[%clk 0:00:23]}  Nd2 {[%clk 0:00:54]} 40. Ng4 {[%clk 0:00:16]}  Qe4+ {[%clk 0:00:54]} 41. Kg3 {[%clk 0:00:10]}  Nf1# {[%clk 0:00:49]} 0-1